bitfinex-derivatives/quotes_BNBF0:USTF0_20250715
["timestamp","ask_amount","ask_price","bid_price","bid_amount"]
[1752592666945,0.97271414,681.37,680.52,0.98275751]
[1752592667145,0.97271414,681.23,680.49,0.98275751]
[1752592667646,0.97271414,681.52,680.71,0.98275751]
[1752592667942,0.2555113,681.48,680.64,0.98275751]
[1752592668146,0.2555113,681.48,680.61,0.98275751]
[1752592668346,0.97271414,681.44,680.61,0.98275751]
[1752592668647,0.2555113,681.48,680.61,0.98275751]
[1752592668648,0.97271414,681.42,680.61,0.98275751]
[1752592669141,0.97271414,681.41,680.61,0.98275751]
[1752592669346,0.97271414,681.42,680.61,0.98275751]
[1752592669545,0.97271414,681.43,680.61,0.98275751]
[1752592669845,0.97271414,681.42,680.6,0.98275751]
[1752592670043,0.97271414,681.42,680.61,0.98275751]
[1752592671649,0.97271414,681.43,680.6,0.98275751]
[1752592672046,0.97271414,681.46,680.58,0.98275751]
[1752592672945,0.2555113,681.48,680.58,0.98275751]
[1752592672946,0.97271414,681.45,680.58,0.98275751]
[1752592673146,0.97271414,681.39,680.54,0.98275751]
[1752592673352,0.97271414,681.36,680.52,0.98275751]
[1752592675051,0.97271414,681.37,680.52,0.98275751]
[1752592675248,0.2555113,681.48,680.52,0.98275751]
[1752592675249,0.97271414,681.36,680.52,0.98275751]
[1752592676256,0.97271414,681.35,680.52,0.98275751]
[1752592676553,0.2555113,681.48,680.54,0.98275751]
[1752592676554,0.97271414,681.33,680.54,0.98275751]
[1752592677256,0.97271414,681.31,680.55,0.98275751]
[1752592677559,0.97271414,681.3,680.56,0.98275751]
[1752592678158,0.97271414,681.31,680.56,0.98275751]
[1752592678457,0.97271414,681.3,680.56,0.98275751]
[1752592679454,0.97271414,681.31,680.56,0.98275751]
[1752592679957,0.97271414,681.3,680.58,0.98275751]
[1752592680857,0.97271414,681.28,680.59,0.98275751]
[1752592681157,0.97271414,681.27,680.61,0.98275751]
[1752592681356,0.2555113,681.48,679.67,0.2555873]
[1752592681357,0.97271414,681.29,680.63,0.98275751]
[1752592681657,0.97271414,681.26,680.6,0.98275751]
[1752592682157,0.97271414,681.29,680.59,0.98275751]
[1752592683156,0.97271414,681.29,680.58,0.98275751]
[1752592683353,0.97271414,681.29,680.59,0.98275751]
[1752592684156,0.97271414,681.29,680.58,0.98275751]
[1752592684356,0.97271414,681.28,680.58,0.98275751]
[1752592684957,0.97271414,681.28,680.59,0.98275751]
[1752592685157,0.97271414,681.28,680.58,0.98275751]
[1752592685452,0.97271414,681.28,680.59,0.98275751]
[1752592685866,0.97271414,681.28,680.58,0.98275751]
[1752592686465,0.97271414,681.28,680.59,0.98275751]
[1752592688862,0.97271414,681.27,680.59,0.98275751]
[1752592689468,0.97271414,681.27,680.6,0.98275751]
[1752592689768,0.97271414,681.26,680.6,0.98275751]
[1752592691269,0.97271414,681.25,680.61,0.98275751]
[1752592691969,0.97271414,681.2,680.64,0.98275751]
[1752592692269,0.97271414,681.24,680.62,0.98275751]
[1752592693466,0.97271414,681.25,680.62,0.98275751]
[1752592694369,0.97271414,681.24,680.62,0.98275751]
[1752592699375,0.97271414,681.23,680.63,0.98275751]
[1752592702077,0.97271414,681.19,680.66,0.98275751]
[1752592702276,0.97271414,681.2,680.65,0.98275751]
[1752592702574,0.97271414,681.21,680.65,0.98275751]
[1752592703374,0.97271414,681.19,680.66,0.98275751]
[1752592704491,0.97271414,681.2,680.65,0.98275751]
[1752592705385,0.97271414,681.21,680.65,0.98275751]
[1752592705580,0.97271414,681.23,680.66,0.98275751]
[1752592706381,0.97271414,681.24,680.65,0.98275751]
[1752592706584,0.97271414,681.31,680.72,0.98275751]
[1752592708478,0.97271414,681.32,680.72,0.98275751]
[1752592709479,0.97271414,681.36,680.76,0.98275751]
[1752592709778,0.97271414,681.35,680.77,0.98275751]
[1752592710286,0.97271414,681.36,680.77,0.98275751]
[1752592710578,0.97271414,681.36,680.76,0.98275751]
[1752592711381,0.97271414,681.37,680.76,0.98275751]
[1752592711884,0.97271414,681.36,680.76,0.98275751]
[1752592712183,0.25545878,681.56,679.67,0.2555873]
[1752592712184,0.97271414,681.39,680.79,0.98275751]
[1752592712983,0.97271414,681.4,680.79,0.98275751]
[1752592714086,0.97271414,681.39,680.79,0.98275751]
[1752592714387,0.97271414,681.4,680.79,0.98275751]
[1752592715488,0.97271414,681.4,680.78,0.98275751]
[1752592715983,0.97271414,681.45,680.75,0.98275751]
[1752592716187,0.97271414,681.46,680.75,0.98275751]
[1752592716387,0.97271414,681.46,680.74,0.98275751]
[1752592716583,0.97271414,681.47,680.75,0.98275751]
[1752592716782,0.97271414,681.46,680.75,0.98275751]
[1752592716987,0.97271414,681.47,680.75,0.98275751]
[1752592717584,0.97271414,681.5,680.78,0.98275751]
[1752592717783,0.97271414,681.55,680.83,0.98275751]
[1752592718488,0.97271414,681.56,680.82,0.98275751]
[1752592719185,0.97271414,681.55,680.82,0.98275751]
[1752592719387,0.97271414,681.56,680.81,0.98275751]
[1752592719587,0.97271414,681.56,680.82,0.98275751]
[1752592719988,0.97271414,681.53,680.83,0.98275751]
[1752592720483,0.97271414,681.5,680.79,0.98275751]
[1752592721487,0.97271414,681.43,680.71,0.98275751]
[1752592722189,0.97271414,681.45,680.7,0.98275751]
[1752592722386,0.97271414,681.42,680.69,0.98275751]
[1752592722591,0.97271414,681.42,680.67,0.98275751]
[1752592723392,0.97271414,681.4,680.65,0.98275751]
[1752592724496,0.97271414,681.4,680.64,0.98275751]
[1752592724994,0.97271414,681.41,680.64,0.98275751]
[1752592726895,0.97271414,681.4,680.65,0.98275751]
[1752592727499,0.97271414,681.41,680.64,0.98275751]
[1752592728799,0.98121642,681.41,680.64,0.98795242]
[1752592729100,0.98121642,681.39,680.65,0.98795242]
[1752592731198,1.3046123,681.56,680.48,1.3218687]
[1752592731199,0.98121642,681.38,680.64,0.98795242]
[1752592731396,0.98121642,681.38,680.65,0.98795242]
[1752592731695,0.98121642,681.39,680.64,0.98795242]
[1752592732098,0.98121642,681.38,680.65,0.98795242]
[1752592733196,0.98121642,681.38,680.48,1.3218687]
[1752592733197,0.98121642,681.38,680.64,0.98795242]
[1752592733397,0.98121642,681.38,680.65,0.98795242]
[1752592735798,0.98124614,681.38,680.65,0.98800704]
[1752592737103,0.98124614,681.37,680.65,0.98800704]
[1752592737599,0.98124614,681.36,680.67,0.98800704]
[1752592737900,0.98124614,681.35,680.67,0.98800704]
[1752592738903,0.98124614,681.33,680.68,0.98800704]
[1752592739101,0.98124614,681.32,680.69,0.98800704]
[1752592740101,0.98124614,681.33,680.68,0.98800704]
[1752592740905,0.98124614,681.34,680.68,0.98800704]
[1752592741101,0.98124614,681.34,680.67,0.98800704]
[1752592741305,0.98124614,681.34,680.68,0.98800704]
[1752592741505,0.98124614,681.3,680.63,0.98800704]
[1752592742406,0.98124614,681.34,680.6,0.98800704]
[1752592743402,0.98124614,681.35,680.59,0.98800704]
[1752592743604,0.98124614,681.37,680.58,0.98800704]
[1752592743803,0.98124614,681.39,680.57,0.98800704]
[1752592744505,0.98124614,681.37,680.55,0.98800704]
[1752592744708,0.98124614,681.33,680.51,0.98800704]
[1752592745406,0.98124614,681.32,680.52,0.98800704]
[1752592746509,0.98124614,681.32,680.51,0.98800704]
[1752592747306,0.98124614,681.33,680.52,0.98800704]
[1752592747707,0.98124614,681.3,680.48,0.98800704]
[1752592748209,0.25543815,681.64,679.67,0.2555873]
[1752592748210,0.98124614,681.28,680.49,0.98800704]
[1752592748411,0.98124614,681.29,680.49,0.98800704]
[1752592748613,0.98124614,681.31,680.48,0.98800704]
[1752592748811,0.98124614,681.31,680.47,0.98800704]
[1752592749010,0.98124614,681.29,680.48,0.98800704]
[1752592749209,0.98124614,681.29,680.49,0.98800704]
[1752592749406,0.98124614,681.29,680.48,0.98800704]
[1752592749605,0.98124614,681.3,680.49,0.98800704]
[1752592750608,0.98124614,681.3,680.48,0.98800704]
[1752592751307,0.98124614,681.34,680.52,0.98800704]
[1752592751512,0.98124614,681.33,680.52,0.98800704]
[1752592752113,0.98124614,681.33,680.51,0.98800704]
[1752592752309,0.98124614,681.31,680.52,0.98800704]
[1752592754314,0.98124614,681.28,680.54,0.98800704]
[1752592756718,0.98124614,681.27,680.54,0.98800704]
[1752592756914,0.98124614,681.28,680.54,0.98800704]
[1752592757318,0.98124614,681.27,680.54,0.98800704]
[1752592757518,1.3046123,681.44,680.54,0.98800704]
[1752592757519,0.98124614,681.28,680.54,0.98800704]
[1752592758018,0.98124614,681.28,680.53,0.98800704]
[1752592758219,0.98124614,681.28,680.54,0.98800704]
[1752592758420,0.98124614,681.28,680.53,0.98800704]
[1752592760216,0.98124614,681.3,680.53,0.98800704]
[1752592760819,0.98124614,681.3,680.52,0.98800704]
[1752592761021,0.98124614,681.27,680.49,0.98800704]
[1752592761317,0.98124614,681.23,680.52,0.98800704]
[1752592761721,0.98124614,681.23,680.51,0.98800704]
[1752592761924,0.98124614,681.24,680.51,0.98800704]
[1752592762415,0.98124614,681.27,680.49,0.98800704]
[1752592762817,0.98124614,681.3,680.51,0.98800704]
[1752592763721,0.98124614,681.31,680.51,0.98800704]
[1752592763922,0.98124614,681.32,680.5,0.98800704]
[1752592764324,0.98124614,681.31,680.5,0.98800704]
[1752592765521,0.98124614,681.32,680.5,0.98800704]
[1752592766619,0.98124614,681.41,680.64,0.98800704]
[1752592766831,0.98124614,681.4,680.65,0.98800704]
[1752592767324,0.98124614,681.45,680.65,0.98800704]
[1752592768924,0.98124614,681.46,680.65,0.98800704]
[1752592770324,0.98124614,681.46,680.64,0.98800704]
[1752592770526,0.98124614,681.46,680.65,0.98800704]
[1752592770721,0.98124614,681.45,680.64,0.98800704]
[1752592771522,0.98124614,681.45,680.65,0.98800704]
[1752592772828,0.98124614,681.44,680.65,0.98800704]
[1752592773329,0.98124614,681.44,680.66,0.98800704]
[1752592774730,0.98124614,681.45,680.66,0.98800704]
[1752592774926,0.98124614,681.45,680.67,0.98800704]
[1752592776427,0.98124614,681.44,680.68,0.98800704]
[1752592776630,0.98124614,681.46,680.67,0.98800704]
[1752592776829,0.98124614,681.54,680.75,0.98800704]
[1752592777034,0.98124614,681.53,680.74,0.98800704]
[1752592777228,0.98124614,681.54,680.74,0.98800704]
[1752592777429,0.98124614,681.57,680.72,0.98800704]
[1752592778335,0.98124614,681.56,680.73,0.98800704]
[1752592778535,0.98124614,681.6,680.7,0.98800704]
[1752592779031,0.98124614,681.61,680.7,0.98800704]
[1752592779235,0.25543815,681.64,680.69,0.98800704]
[1752592779236,0.98124614,681.62,680.69,0.98800704]
[1752592779736,0.98124614,681.63,680.69,0.98800704]
[1752592780138,0.98124614,681.61,680.66,0.98800704]
[1752592780331,0.25543815,681.64,680.42,1.3218687]
[1752592780332,0.98124614,681.6,680.67,0.98800704]
[1752592780635,0.98124614,681.59,680.67,0.98800704]
[1752592784739,0.25543815,681.64,679.67,0.2555873]
[1752592784740,0.98124614,681.54,680.71,0.98800704]
[1752592784940,0.98124614,681.5,680.67,0.98800704]
[1752592785540,0.98124614,681.49,680.67,0.98800704]
[1752592785736,0.98124614,681.47,680.68,0.98800704]
[1752592786641,0.98124614,681.45,680.7,0.98800704]
[1752592787342,0.98124614,681.43,680.71,0.98800704]
[1752592787543,0.98124614,681.44,680.71,0.98800704]
[1752592789040,0.98124614,681.45,680.7,0.98800704]
[1752592790043,0.98124614,681.46,680.69,0.98800704]
[1752592790242,0.98124614,681.45,680.7,0.98800704]
[1752592791943,0.98124614,681.46,680.68,0.98800704]
[1752592792344,0.98124614,681.44,680.68,0.98800704]
[1752592792639,0.98124614,681.41,680.68,0.98800704]
[1752592792845,0.98124614,681.38,680.61,0.98800704]
[1752592794047,0.98124614,681.39,680.6,0.98800704]
[1752592794346,0.98124614,681.4,680.6,0.98800704]
[1752592794547,0.98124614,681.39,680.6,0.98800704]
[1752592796248,0.98124614,681.37,680.61,0.98800704]
[1752592797648,0.98124614,681.37,680.62,0.98800704]
[1752592798845,0.98124614,681.37,680.61,0.98800704]
[1752592799047,0.98124614,681.39,680.6,0.98800704]
[1752592799447,0.98124614,681.45,680.56,0.98800704]
[1752592799644,0.98124614,681.44,680.56,0.98800704]
[1752592799847,0.98124614,681.46,680.55,0.98800704]
[1752592800448,0.98124614,681.46,680.54,0.98800704]
[1752592800648,0.98124614,681.47,680.54,0.98800704]
[1752592801649,0.25543815,681.64,680.06,0.25551786]
[1752592801650,0.98124614,681.41,680.47,0.98800704]
[1752592801945,0.98124614,681.39,680.48,0.98800704]
[1752592802545,0.98124614,681.41,680.47,0.98800704]
[1752592803648,0.98124614,681.39,680.48,0.98800704]
[1752592803849,0.98124614,681.36,680.5,0.98800704]
[1752592804050,0.98124614,681.37,680.5,0.98800704]
[1752592804649,0.98124614,681.35,680.51,0.98800704]
[1752592805348,0.98124614,681.36,680.5,0.98800704]
[1752592806055,0.98124614,681.34,680.52,0.98800704]
[1752592806255,0.98124614,681.32,680.53,0.98800704]
[1752592806756,0.98124614,681.29,680.5,0.98800704]
[1752592806954,0.98124614,681.26,680.46,0.98800704]
[1752592807154,0.98124614,681.26,680.45,0.98800704]
[1752592808354,0.98124614,681.28,680.44,0.98800704]
[1752592808854,0.98124614,681.27,680.44,0.98800704]
[1752592809755,0.98124614,681.26,680.45,0.98800704]
[1752592810252,0.98124614,681.26,680.07,1.982803]
[1752592810253,0.98124614,681.31,680.41,0.98800704]
[1752592810659,0.98124614,681.28,680.38,0.98800704]
[1752592810858,0.98124614,681.23,680.33,0.98800704]
[1752592812162,0.98124614,681.2,680.3,0.98800704]
[1752592812460,0.98124614,681.2,680.29,0.98800704]
[1752592812958,0.98124614,681.19,680.29,0.98800704]
[1752592813360,0.98124614,681.19,680.08,1.3218687]
[1752592813361,0.98124614,681.2,680.28,0.98800704]
[1752592814057,0.98124614,681.19,680.28,0.98800704]
[1752592814263,0.98124614,681.19,680.27,0.98800704]
[1752592814461,0.98124614,681.2,680.27,0.98800704]
[1752592815162,0.98124614,681.13,680.2,0.98800704]
[1752592815462,0.98124614,681.14,680.19,0.98800704]
[1752592816364,0.98124614,681.15,680.18,0.98800704]
[1752592816766,0.98124614,681.14,680.18,0.98800704]
[1752592816962,0.98124614,681.15,680.18,0.98800704]
[1752592817261,0.98124614,681.15,680.16,0.98800704]
[1752592817561,0.98124614,681.14,680.18,0.98800704]
[1752592818362,0.98124614,681.14,680.17,0.98800704]
[1752592819469,0.98124614,681.15,680.16,0.98800704]
[1752592820269,0.98124614,681.15,680.15,0.98800704]
[1752592820968,0.98124614,681.13,680.13,0.98800704]
[1752592821169,0.98124614,681.1,680.15,0.98800704]
[1752592821370,1.9569184,681.45,680.14,0.98800704]
[1752592821371,0.98124614,681.11,680.14,0.98800704]
[1752592822271,0.98124614,681.11,680.13,0.98800704]
[1752592822471,0.98124614,681.13,680.12,0.98800704]
[1752592823571,0.25543815,681.64,680.06,0.25551786]
[1752592823572,0.98124614,681.14,680.11,0.98800704]
[1752592824172,0.98124614,681.15,680.11,0.98800704]
[1752592824472,0.98124614,681.15,680.1,0.98800704]
[1752592825371,1.9569184,681.53,680.09,0.98800704]
[1752592825372,0.98124614,681.16,680.09,0.98800704]
[1752592825668,0.98124614,681.15,680.09,0.98800704]
[1752592826368,0.98124614,681.11,680.12,0.98800704]
[1752592827674,0.98124614,681.12,680.12,0.98800704]
[1752592828371,0.98124614,681.12,680.11,0.98800704]
[1752592828574,0.98124614,681.13,680.1,0.98800704]
[1752592828875,0.98124614,681.15,680.08,0.98800704]
[1752592829875,0.98124614,681.22,680.06,0.25551786]
[1752592830574,0.98124614,681.21,680.06,0.25551786]
[1752592831471,0.98124614,681.18,680.06,0.25551786]
[1752592831976,0.98124614,680.95,680.06,0.25551786]
[1752592832274,0.98124614,680.93,680.06,0.25551786]
[1752592832474,0.98124614,680.92,680.06,0.25551786]
[1752592833376,0.98124614,680.9,680.06,0.25551786]
[1752592833671,0.98124614,680.84,680.06,0.25551786]
[1752592834074,0.98124614,680.83,680.06,0.25551786]
[1752592834372,0.98124614,680.85,680.06,0.25551786]
[1752592834575,0.98124614,680.86,680.06,0.25551786]
[1752592834778,0.98124614,680.85,680.06,0.25551786]
[1752592835172,0.98124614,680.84,680.06,0.25551786]
[1752592835375,0.98124614,680.82,680.06,0.25551786]
[1752592835575,0.98124614,680.79,680.06,0.25551786]
[1752592836278,0.98124614,680.8,680.06,0.25551786]
[1752592837375,0.98124614,680.82,680.06,0.25551786]
[1752592838374,0.98124614,680.87,680.06,0.25551786]
[1752592838980,0.98124614,680.86,680.06,0.25551786]
[1752592839475,0.98124614,680.87,680.06,0.25551786]
[1752592839874,0.98124614,680.86,680.06,0.25551786]
[1752592841779,0.98124614,680.85,680.06,0.25551786]
[1752592842083,0.98124614,680.85,679.65,0.98800704]
[1752592842484,0.98124614,680.85,679.95,0.25578925]
[1752592842785,0.98124614,680.88,679.95,0.25578925]
[1752592842985,0.98124614,680.9,679.95,0.25578925]
[1752592843386,0.98124614,680.81,679.95,0.25578925]
[1752592843887,0.98124614,680.75,679.95,0.25578925]
[1752592844183,0.97358305,680.75,679.95,0.25578925]
[1752592844482,0.97358305,680.76,679.95,0.25578925]
[1752592845487,0.97358305,680.77,679.95,0.25578925]
[1752592847585,0.97358305,680.78,679.95,0.25578925]
[1752592848989,0.97358305,680.77,679.95,0.25578925]
[1752592849488,0.97358305,680.78,679.95,0.25578925]
[1752592849994,1.3046123,680.93,679.95,0.25578925]
[1752592850291,0.97281281,680.78,679.95,0.25578925]
[1752592851192,0.97281281,680.76,679.95,0.25578925]
[1752592851793,0.97281281,680.8,679.95,0.25578925]
[1752592852197,0.97281281,680.79,679.95,0.25578925]
[1752592853393,0.97281281,680.78,679.95,0.25578925]
[1752592853896,0.97281281,680.71,679.95,0.25578925]
[1752592854196,0.97281281,680.73,679.95,0.25578925]
[1752592854399,0.97281281,680.74,679.95,0.25578925]
[1752592854996,0.97302935,680.73,679.95,0.25578925]
[1752592857400,1.3046123,680.87,679.95,0.25578925]
[1752592857401,0.97302935,680.72,679.95,0.25578925]
[1752592857702,0.97302935,680.76,679.95,0.25578925]
[1752592858402,0.97302935,680.79,679.51,0.98038424]
[1752592858605,0.97302935,680.65,679.84,0.25583909]
[1752592858799,0.97302935,680.61,679.84,0.25583909]
[1752592859004,0.97302935,680.7,679.84,0.25583909]
[1752592859204,0.97302935,680.68,679.84,0.25583909]
[1752592859802,0.97302935,680.67,679.84,0.25583909]
[1752592861906,0.97302935,680.57,679.84,0.25583909]
[1752592862103,0.97302935,680.64,679.84,0.25583909]
[1752592862406,0.97302935,680.69,679.84,0.25583909]
[1752592862606,0.97302935,680.71,679.84,0.25583909]
[1752592863208,0.97302935,680.82,679.84,0.25583909]
[1752592863503,0.97302935,680.77,679.84,0.25583909]
[1752592863907,0.97302935,680.71,679.84,0.25583909]
[1752592864402,0.97302935,680.7,679.84,0.25583909]
[1752592864803,0.97302935,680.69,679.84,0.25583909]
[1752592865208,0.97302935,680.7,679.84,0.25583909]
[1752592865405,0.97302935,680.69,679.84,0.25583909]
[1752592865805,0.97302935,680.67,679.84,0.25583909]
[1752592866205,0.97302935,680.68,679.84,0.25583909]
[1752592866405,0.97302935,680.67,679.84,0.25583909]
[1752592867808,0.97302935,680.63,679.84,0.25583909]
[1752592868205,0.97302935,680.62,679.84,0.25583909]
[1752592869510,0.97302935,680.61,679.84,0.25583909]
[1752592870112,0.97302935,680.62,679.84,0.25583909]
[1752592870312,1.3046123,680.76,679.84,0.25583909]
[1752592870313,0.97302935,680.61,679.84,0.25583909]
[1752592870511,0.97302935,680.63,679.84,0.25583909]
[1752592870712,0.97302935,680.64,679.84,0.25583909]
[1752592871510,0.97302935,680.62,679.84,0.25583909]
[1752592873413,0.97302935,680.63,679.84,0.25583909]
[1752592873816,0.97302935,680.64,679.84,0.25583909]
[1752592874017,0.97302935,680.66,679.84,0.25583909]
[1752592876020,0.97302935,680.64,679.84,0.25583909]
[1752592876518,0.97302935,680.63,679.84,0.25583909]
[1752592876813,0.97302935,680.68,679.84,0.25583909]
[1752592877218,0.97302935,680.69,679.84,0.25583909]
[1752592877513,1.3046123,680.83,679.84,0.25583909]
[1752592877514,0.97302935,680.68,679.84,0.25583909]
[1752592877817,0.97302935,680.69,679.84,0.25583909]
[1752592878215,0.97302935,680.68,679.84,0.25583909]
[1752592880315,0.97302935,680.67,679.84,0.25583909]
[1752592880819,0.97302935,680.75,679.84,0.25583909]
[1752592881218,0.97302935,680.74,679.84,0.25583909]
[1752592882220,0.97302935,680.71,679.84,0.25583909]
[1752592882416,0.97302935,680.73,679.84,0.25583909]
[1752592883424,0.97302935,680.72,679.84,0.25583909]
[1752592883720,0.97302935,680.71,679.84,0.25583909]
[1752592883924,0.97302935,680.75,679.84,0.25583909]
[1752592884323,0.97302935,680.74,679.84,0.25583909]
[1752592885421,1.3046123,680.88,679.84,0.25583909]
[1752592885422,0.97302935,680.73,679.84,0.25583909]
[1752592886321,0.97302935,680.72,679.84,0.25583909]
[1752592887024,0.97302935,680.74,679.85,0.98038424]
[1752592887225,0.97302935,680.73,679.85,0.98038424]
[1752592887425,0.97302935,680.73,679.87,0.98038424]
[1752592888426,0.97302935,680.71,679.88,0.98038424]
[1752592888625,0.97302935,680.72,679.89,0.98038424]
[1752592888823,3.2615308,681.59,679.88,0.98038424]
[1752592888824,0.97302935,680.74,679.88,0.98038424]
[1752592889024,0.97302935,680.75,679.87,0.98038424]
[1752592889225,0.97302935,680.73,679.88,0.98038424]
[1752592889630,0.97929481,680.74,679.88,0.98721528]
[1752592889928,0.97929481,680.84,679.95,0.98721528]
[1752592890129,0.97929481,680.86,679.94,0.98721528]
[1752592890324,0.97929481,680.85,679.96,0.98721528]
[1752592890525,0.97929481,680.84,679.95,0.98721528]
[1752592890724,1.9569184,681.23,679.84,0.25583909]
[1752592890725,0.97929481,680.83,679.96,0.98721528]
[1752592890930,0.97994882,680.74,680.02,0.98756014]
[1752592891128,0.97994882,680.76,680.0,0.98756014]
[1752592891323,0.97994882,680.75,680.02,0.98756014]
[1752592891528,0.97994882,680.66,679.9,0.98756014]
[1752592891826,0.97994882,680.57,679.84,0.25583909]
[1752592892130,0.97994882,680.56,679.84,0.25583909]
[1752592892324,1.3046123,680.71,679.84,0.25583909]
[1752592892325,0.97994882,680.55,679.84,0.25583909]
[1752592892626,0.97994882,680.6,679.84,0.25583909]
[1752592893425,0.97994882,680.59,679.84,0.25583909]
[1752592893726,0.97994882,680.62,679.84,0.25583909]
[1752592893930,0.97994882,680.64,679.84,0.25583909]
[1752592897829,0.97994882,680.63,679.84,0.25583909]
[1752592900834,0.97994882,680.62,679.84,0.25583909]
[1752592902436,0.97994882,680.61,679.84,0.25583909]
[1752592902632,0.97994882,680.6,679.84,0.25583909]
[1752592903735,0.97994882,680.54,679.84,0.25583909]
[1752592905339,0.97994882,680.52,679.84,1.24339923]
[1752592905937,0.97994882,680.52,679.84,0.25583909]
[1752592906139,0.97994882,680.52,679.84,1.24339923]
[1752592906439,0.97994882,680.51,679.84,1.24339923]
[1752592906739,0.97994882,680.5,679.85,0.98756014]
[1752592907136,0.97994882,680.48,679.86,0.98756014]
[1752592907340,0.97994882,680.45,679.84,0.25583909]
[1752592907737,0.97994882,680.49,679.84,0.25583909]
[1752592908342,0.97994882,680.47,679.84,0.25583909]
[1752592908540,0.97994882,680.48,679.84,0.25583909]
[1752592909040,0.97994882,680.49,679.84,0.25583909]
[1752592909740,0.97994882,680.5,679.84,0.25583909]
[1752592910841,0.97994882,680.55,679.84,0.25583909]
[1752592911135,0.97994882,680.56,679.86,0.98756014]
[1752592913138,0.97994882,680.56,679.87,0.98756014]
[1752592913638,0.97994882,680.58,679.86,0.98756014]
[1752592913839,0.97994882,680.57,679.86,0.98756014]
[1752592914137,4.5661431,681.76,679.84,0.25583909]
[1752592914138,0.97994882,680.58,679.85,0.98756014]
[1752592919547,0.97994882,680.57,679.85,0.98756014]
[1752592919748,0.97994882,680.59,679.84,1.24339923]
[1752592919941,0.97994882,680.6,679.84,0.25583909]
[1752592920742,0.97994882,680.6,679.84,1.24339923]
[1752592920946,0.97994882,680.59,679.84,0.25583909]
[1752592921241,0.97994882,680.54,679.84,0.25583909]
[1752592921650,0.97994882,680.52,679.84,0.25583909]
[1752592922147,0.97994882,680.53,679.84,0.25583909]
[1752592922347,0.97994882,680.5,679.84,0.25583909]
[1752592924749,0.97994882,680.48,679.84,0.25583909]
[1752592925746,0.97994882,680.5,679.84,0.25583909]
[1752592927548,0.97994882,680.51,679.84,0.25583909]
[1752592928250,0.97994882,680.5,679.84,0.25583909]
[1752592928754,0.97994882,680.49,679.84,0.25583909]
[1752592929050,0.97994882,680.51,679.84,0.25583909]
[1752592929456,0.97994882,680.57,679.84,0.25583909]
[1752592931356,0.97994882,680.53,679.86,0.98756014]
[1752592931661,0.97994882,680.57,679.84,0.25583909]
[1752592931958,0.97994882,680.6,679.84,0.25583909]
[1752592933256,0.97994882,680.58,679.84,0.25583909]
[1752592933757,0.97994882,680.64,679.88,0.98756014]
[1752592933962,0.97994882,680.64,679.89,0.98756014]
[1752592935658,0.97994882,680.65,679.9,0.98756014]
[1752592937663,0.97994882,680.66,679.89,0.98756014]
[1752592937860,0.97994882,680.65,679.89,0.98756014]
[1752592938158,0.97994882,680.64,679.9,0.98756014]
[1752592938858,0.97994882,680.59,679.93,0.98756014]
[1752592941564,0.97994882,680.6,679.93,0.98756014]
[1752592942060,0.97994882,680.59,679.93,0.98756014]
[1752592942765,0.25576011,680.74,679.93,0.98756014]
[1752592942766,0.97994882,680.6,679.93,0.98756014]
[1752592942960,0.97994882,680.59,679.93,0.98756014]
[1752592943864,0.25576011,680.74,679.84,0.25583909]
[1752592943865,0.97994882,680.61,679.92,0.98756014]
[1752592944064,0.97994882,680.61,679.93,0.98756014]
[1752592945164,0.97994882,680.61,679.94,0.98756014]
[1752592945364,0.97994882,680.62,679.93,0.98756014]
[1752592945563,0.97994882,680.64,679.95,0.98756014]
[1752592945761,0.97994882,680.65,679.95,0.98756014]
[1752592945959,0.97994882,680.69,680.0,0.98756014]
[1752592946164,0.97994882,680.7,680.08,0.98756014]
[1752592946367,0.97994882,680.71,680.08,0.98756014]
[1752592946661,0.97994882,680.73,680.07,0.98756014]
[1752592947163,0.97994882,680.72,680.08,0.98756014]
[1752592947362,0.97994882,680.73,680.07,0.98756014]
[1752592947967,0.97994882,680.72,680.07,0.98756014]
[1752592948362,0.97994882,680.73,680.07,0.98756014]
[1752592948763,0.97994882,680.73,680.06,0.98756014]
[1752592949968,0.97994882,680.75,680.05,0.98756014]
[1752592950168,0.97994882,680.74,680.05,0.98756014]
[1752592951668,0.97994882,680.74,680.06,0.98756014]
[1752592951868,0.97994882,680.72,680.07,0.98756014]
[1752592952069,0.97994882,680.68,680.08,0.98756014]
[1752592952368,0.97994882,680.68,680.07,0.98756014]
[1752592952562,0.97994882,680.66,680.09,0.98756014]
[1752592952973,0.97994882,680.61,680.03,0.98756014]
[1752592954268,0.97994882,680.63,680.02,0.98756014]
[1752592955071,0.97994882,680.64,680.01,0.98756014]
[1752592956271,0.97994882,680.65,680.0,0.98756014]
[1752592956567,0.97994882,680.68,679.98,0.98756014]
[1752592960372,0.97994882,680.68,679.97,0.98756014]
[1752592962073,0.97994882,680.69,679.97,0.98756014]
[1752592963973,0.97994882,680.7,679.96,0.98756014]
[1752592965374,0.97994882,680.69,679.97,0.98756014]
[1752592966270,0.97994882,680.68,679.98,0.98756014]
[1752592966768,0.97994882,680.67,679.98,0.98756014]
[1752592967970,0.97994882,680.67,679.99,0.98756014]
[1752592968170,0.97994882,680.66,679.99,0.98756014]
[1752592968372,0.97994882,680.67,679.98,0.98756014]
[1752592968675,0.97994882,680.7,679.96,0.98756014]
[1752592969171,0.97994882,680.7,679.97,0.98756014]